[Event "Vetern-SM 50+ 2025"]
[Site "Uppsala, Sweden"]
[Date "2025.07.03"]
[Round "6.3"]
[White "Helin, Mikael"]
[Black "Gamback, Bjorn"]
[Result "0-1"]
[TimeControl "90 min for 40 move + 30 min with an increment of 30 sec starting move 1"]
[WhiteTitle "CM"]
[BlackTitle "CM"]
[WhiteFideId "1703838"]
[BlackFideId "1703161"]
[WhiteElo "1929"]
[BlackElo "1996"]

1. e4 {[%clk 01:30:59]} {[%emt 18:16:07]} c5 {[%clk 01:30:33]} {[%emt
00:00:32]} 2. c4 {[%clk 01:29:25]} {[%emt 00:02:04]} Nc6 {[%clk 01:30:58]}
{[%emt 00:00:05]} 3. Nc3 {[%clk 01:29:47]} {[%emt 00:00:08]} g6 {[%clk
01:31:22]} {[%emt 00:00:05]} 4. g3 {[%clk 01:30:11]} {[%emt 00:00:06]} Bg7
{[%clk 01:31:48]} {[%emt 00:00:04]} 5. Bg2 {[%clk 01:30:39]} {[%emt 00:00:03]}
d6 {[%clk 01:32:12]} {[%emt 00:00:06]} 6. Rb1 {[%clk 01:30:54]} {[%emt
00:00:15]} e6 {[%clk 01:32:26]} {[%emt 00:00:15]} 7. Nge2 {[%clk 01:31:06]}
{[%emt 00:00:18]} Nge7 {[%clk 01:32:44]} {[%emt 00:00:12]} 8. a3 {[%clk
01:27:27]} {[%emt 00:04:10]} b6 {[%clk 01:31:14]} {[%emt 00:02:00]} 9. d3
{[%clk 01:26:51]} {[%emt 00:01:05]} Bb7 {[%clk 01:31:29]} {[%emt 00:00:16]} 10.
b4 {[%clk 01:27:04]} {[%emt 00:00:16]} Qd7 {[%clk 01:31:12]} {[%emt 00:00:47]}
11. O-O {[%clk 01:26:44]} {[%emt 00:00:51]} O-O {[%clk 01:31:16]} {[%emt
00:00:26]} 12. b5 {[%clk 01:26:58]} {[%emt 00:00:16]} Nd4 {[%clk 01:31:29]}
{[%emt 00:00:17]} 13. Nxd4 {[%clk 01:27:17]} {[%emt 00:00:11]} cxd4 {[%clk
01:31:17]} {[%emt 00:00:41]} 14. Na2 {[%clk 01:26:53]} {[%emt 00:00:54]} Rac8
{[%clk 01:23:44]} {[%emt 00:08:03]} 15. Nb4 {[%clk 01:25:38]} {[%emt 00:01:46]}
f5 {[%clk 01:18:33]} {[%emt 00:05:41]} 16. f3 {[%clk 01:21:58]} {[%emt
00:04:09]} fxe4 {[%clk 01:15:51]} {[%emt 00:03:13]} 17. fxe4 {[%clk 01:22:23]}
{[%emt 00:00:05]} Rxf1+ {[%clk 01:16:13]} {[%emt 00:00:08]} 18. Qxf1 {[%clk
01:22:43]} {[%emt 00:00:09]} d5 {[%clk 01:15:05]} {[%emt 00:01:39]} 19. cxd5
{[%clk 01:19:54]} {[%emt 00:03:19]} Rf8 {[%clk 01:14:32]} {[%emt 00:01:02]} 20.
Qe2 {[%clk 01:18:18]} {[%emt 00:02:05]} Qxb5 {[%clk 01:04:53]} {[%emt
00:10:11]} 21. Bg5 {[%clk 01:16:25]} {[%emt 00:02:23]} Nc8 {[%clk 00:58:48]}
{[%emt 00:06:35]} 22. Rc1 {[%clk 01:16:28]} {[%emt 00:00:26]} exd5 {[%clk
00:55:11]} {[%emt 00:04:07]} 23. Rc7 {[%clk 01:14:16]} {[%emt 00:02:42]} dxe4
{[%clk 00:54:26]} {[%emt 00:01:15]} 24. Rxb7 {[%clk 01:14:16]} {[%emt
00:00:30]} Qxg5 {[%clk 00:54:26]} {[%emt 00:00:30]} 25. Bxe4 {[%clk 01:01:08]}
{[%emt 00:13:37]} Qe3+ {[%clk 00:42:47]} {[%emt 00:12:10]} 26. Qxe3 {[%clk
01:01:24]} {[%emt 00:00:15]} dxe3 {[%clk 00:43:16]} {[%emt 00:00:01]} 27. Bd5+
{[%clk 01:00:50]} {[%emt 00:01:03]} Kh8 {[%clk 00:43:43]} {[%emt 00:00:02]} 28.
Rf7 {[%clk 01:00:32]} {[%emt 00:00:49]} Re8 {[%clk 00:40:57]} {[%emt 00:03:16]}
29. Be4 {[%clk 00:56:25]} {[%emt 00:04:36]} Nd6 {[%clk 00:33:14]} {[%emt
00:08:14]} 30. Rxa7 {[%clk 00:56:30]} {[%emt 00:00:25]} Nxe4 {[%clk 00:33:19]}
{[%emt 00:00:25]} 31. dxe4 {[%clk 00:56:47]} {[%emt 00:00:13]} Rf8 {[%clk
00:33:18]} {[%emt 00:00:31]} 32. Nc2 {[%clk 00:54:45]} {[%emt 00:02:30]} e2
{[%clk 00:33:12]} {[%emt 00:00:38]} 33. Kg2 {[%clk 00:20:52]} {[%emt 00:34:24]}
Bc3 {[%clk 00:32:29]} {[%emt 00:01:12]} 34. Re7 {[%clk 00:19:39]} {[%emt
00:01:43]} e1=Q {[%clk 00:32:35]} {[%emt 00:00:23]} 35. Nxe1 {[%clk 00:20:08]}
{[%emt 00:00:02]} Bxe1 {[%clk 00:32:55]} {[%emt 00:00:10]} 36. e5 {[%clk
00:19:23]} {[%emt 00:01:15]} Bf2 {[%clk 00:32:26]} {[%emt 00:00:59]} 37. Re6
{[%clk 00:16:53]} {[%emt 00:03:00]} Bc5 {[%clk 00:32:10]} {[%emt 00:00:46]} 38.
g4 {[%clk 00:16:50]} {[%emt 00:00:33]} Kg7 {[%clk 00:29:11]} {[%emt 00:03:29]}
39. h4 {[%clk 00:14:37]} {[%emt 00:02:43]} Rf7 {[%clk 00:28:36]} {[%emt
00:01:05]} 40. Rc6 {[%clk 00:14:48]} {[%emt 00:00:18]} Re7 {[%clk 00:28:42]}
{[%emt 00:00:25]} 41. e6 {[%clk 00:14:18]} {[%emt 00:01:00]} Kf6 {[%clk
00:28:53]} {[%emt 00:00:18]} 42. a4 {[%clk 00:13:12]} {[%emt 00:01:37]} Rxe6
{[%clk 00:29:02]} {[%emt 00:00:21]} 43. Rc7 {[%clk 00:13:28]} {[%emt 00:00:14]}
Re7 {[%clk 00:28:08]} {[%emt 00:01:25]} 44. Rc6+ {[%clk 00:13:47]} {[%emt
00:00:10]} Ke5 {[%clk 00:27:53]} {[%emt 00:00:44]} 45. g5 {[%clk 00:13:06]}
{[%emt 00:01:12]} Rf7 {[%clk 00:27:30]} {[%emt 00:00:52]} 46. Rc8 {[%clk
00:11:56]} {[%emt 00:01:40]} Kd5 {[%clk 00:27:05]} {[%emt 00:00:55]} 47. Ra8
{[%clk 00:10:54]} {[%emt 00:01:33]} Bb4 {[%clk 00:26:41]} {[%emt 00:00:54]} 48.
Rc8 {[%clk 00:10:08]} {[%emt 00:01:15]} Bd6 {[%clk 00:24:45]} {[%emt 00:02:27]}
49. Ra8 {[%clk 00:10:12]} {[%emt 00:00:26]} Bc7 {[%clk 00:24:50]} {[%emt
00:00:24]} 50. Re8 {[%clk 00:09:42]} {[%emt 00:01:00]} Kc4 {[%clk 00:24:06]}
{[%emt 00:01:14]} 51. Re4+ {[%clk 00:08:25]} {[%emt 00:01:47]} Kb3 {[%clk
00:23:54]} {[%emt 00:00:43]} 52. Kh3 {[%clk 00:08:17]} {[%emt 00:00:36]} Bd6
{[%clk 00:22:44]} {[%emt 00:01:42]} 53. Re6 {[%clk 00:08:05]} {[%emt 00:00:41]}
Bc5 {[%clk 00:22:54]} {[%emt 00:00:22]} 54. Re4 {[%clk 00:07:51]} {[%emt
00:00:42]} Bb4 {[%clk 00:23:03]} {[%emt 00:00:22]} 55. h5 {[%clk 00:24:22]}
{[%emt 00:13:59]} gxh5 {[%clk 00:52:28]} {[%emt 00:01:05]} 56. g6 {[%clk
00:23:48]} {[%emt 00:01:04]} hxg6 {[%clk 00:52:45]} {[%emt 00:00:12]} 57. Re6
{[%clk 00:24:17]} {[%emt 00:00:02]} Bc5 {[%clk 00:51:42]} {[%emt 00:01:33]} 58.
a5 {[%clk 00:23:20]} {[%emt 00:01:27]} bxa5 {[%clk 00:51:59]} {[%emt 00:00:13]}
59. Rxg6 {[%clk 00:23:44]} {[%emt 00:00:06]} Rf5 {[%clk 00:51:59]} {[%emt
00:00:30]} 60. Rg3+ {[%clk 00:21:40]} {[%emt 00:02:34]} Kb2 {[%clk 00:51:50]}
{[%emt 00:00:39]} 0-1

[Event "Vetern-SM 50+ 2025"]
[Site "Uppsala, Sweden"]
[Date "2025.07.03"]
[Round "6.4"]
[White "Gromark, Jonas"]
[Black "Karlsson, Patrik"]
[Result "1/2-1/2"]
[TimeControl "90 min for 40 move + 30 min with an increment of 30 sec starting move 1"]
[WhiteFideId "137122733"]
[BlackFideId "1710834"]
[WhiteElo "1822"]
[BlackElo "1923"]

1. c4 {[%clk 01:30:53]} {[%emt 00:00:06]} e5 {[%clk 01:30:44]} {[%emt
00:00:16]} 2. Nc3 {[%clk 01:31:14]} {[%emt 00:00:10]} Bb4 {[%clk 01:29:22]}
{[%emt 00:01:51]} 3. Qb3 {[%clk 01:29:17]} {[%emt 00:02:28]} Nc6 {[%clk
01:19:33]} {[%emt 00:10:18]} 4. e3 {[%clk 01:29:17]} {[%emt 00:00:30]} Nf6
{[%clk 01:14:14]} {[%emt 00:05:48]} 5. Nge2 {[%clk 01:28:38]} {[%emt 00:01:09]}
O-O {[%clk 01:11:49]} {[%emt 00:02:56]} 6. a3 {[%clk 01:28:26]} {[%emt
00:00:42]} Bc5 {[%clk 01:08:45]} {[%emt 00:03:34]} 7. Na4 {[%clk 01:22:16]}
{[%emt 00:06:41]} Be7 {[%clk 01:07:32]} {[%emt 00:01:43]} 8. Nac3 {[%clk
01:12:03]} {[%emt 00:10:42]} Re8 {[%clk 01:05:34]} {[%emt 00:02:28]} 9. Ng3
{[%clk 01:10:24]} {[%emt 00:02:08]} d6 {[%clk 01:03:27]} {[%emt 00:02:38]} 10.
Be2 {[%clk 01:03:34]} {[%emt 00:07:19]} Rb8 {[%clk 01:00:18]} {[%emt 00:03:39]}
11. Qc2 {[%clk 01:02:16]} {[%emt 00:01:49]} a5 {[%clk 00:53:56]} {[%emt
00:06:52]} 12. O-O {[%clk 01:01:54]} {[%emt 00:00:53]} Be6 {[%clk 00:50:58]}
{[%emt 00:03:27]} 13. Rd1 {[%clk 01:00:27]} {[%emt 00:01:56]} d5 {[%clk
00:50:23]} {[%emt 00:01:07]} 14. d4 {[%clk 00:51:20]} {[%emt 00:09:37]} exd4
{[%clk 00:49:15]} {[%emt 00:01:37]} 15. exd4 {[%clk 00:51:25]} {[%emt
00:00:25]} h6 {[%clk 00:45:16]} {[%emt 00:04:29]} 16. Be3 {[%clk 00:40:52]} Qd7
{[%clk 00:44:01]} {[%emt 00:12:49]} 17. b3 {[%clk 00:38:34]} Rbd8 {[%clk
00:43:11]} {[%emt 00:04:07]} 18. c5 {[%clk 00:38:09]} Qc8 {[%clk 00:38:45]}
{[%emt 00:05:51]} 19. Nb5 {[%clk 00:35:56]} Rd7 {[%clk 00:30:16]} {[%emt
00:11:42]} 20. Bd3 {[%clk 00:34:06]} Bf8 {[%clk 00:28:45]} {[%emt 00:04:21]} 21.
Nf5 {[%clk 00:32:44]} Ne7 {[%clk 00:26:41]} {[%emt 00:04:26]} 22. Ng3 {[%clk
00:29:39]} Nc6 {[%clk 00:23:38]} {[%emt 00:07:08]} 23. Nf5 {[%clk 00:27:21]}
Ne7 {[%clk 00:24:02]} {[%emt 00:02:53]} 1/2-1/2

[Event "Vetern-SM 50+ 2025"]
[Site "Uppsala, Sweden"]
[Date "2025.07.03"]
[Round "6.5"]
[White "Svensson, Hakan"]
[Black "Persson, Lars"]
[Result "0-1"]
[TimeControl "90 min for 40 move + 30 min with an increment of 30 sec starting move 1"]
[WhiteFideId "1714201"]
[BlackFideId "1703579"]
[WhiteElo "2004"]
[BlackElo "2041"]

1. e4 {[%clk 01:30:55]} {[%emt 00:00:03]} e6 {[%clk 01:27:15]} {[%emt
00:03:47]} 2. d4 {[%clk 01:31:09]} {[%emt 00:00:16]} d5 {[%clk 01:27:37]}
{[%emt 00:00:09]} 3. e5 {[%clk 01:31:34]} {[%emt 00:00:04]} Bd7 {[%clk
01:26:57]} {[%emt 00:01:11]} 4. Nf3 {[%clk 01:31:54]} {[%emt 00:00:08]} a6
{[%clk 01:26:36]} {[%emt 00:00:53]} 5. Bd3 {[%clk 01:26:43]} {[%emt 00:05:39]}
Bb5 {[%clk 01:26:23]} {[%emt 00:00:45]} 6. O-O {[%clk 01:27:04]} {[%emt
00:00:08]} Bxd3 {[%clk 01:26:36]} {[%emt 00:00:17]} 7. Qxd3 {[%clk 01:27:28]}
{[%emt 00:00:06]} c5 {[%clk 01:26:50]} {[%emt 00:00:16]} 8. c3 {[%clk
01:19:03]} {[%emt 00:08:55]} Nc6 {[%clk 01:26:17]} {[%emt 00:01:04]} 9. Bg5
{[%clk 01:16:44]} {[%emt 00:02:47]} Qb6 {[%clk 01:24:01]} {[%emt 00:02:48]} 10.
dxc5 {[%clk 01:16:19]} {[%emt 00:00:54]} Bxc5 {[%clk 01:20:23]} {[%emt
00:04:08]} 11. b4 {[%clk 01:16:24]} {[%emt 00:00:24]} Be7 {[%clk 01:19:48]}
{[%emt 00:01:06]} 12. Re1 {[%clk 01:14:48]} {[%emt 00:02:05]} Bxg5 {[%clk
01:14:33]} {[%emt 00:05:46]} 13. Nxg5 {[%clk 01:15:08]} {[%emt 00:00:09]} Nge7
{[%clk 01:11:16]} {[%emt 00:03:49]} 14. Nd2 {[%clk 01:05:21]} {[%emt 00:10:16]}
h6 {[%clk 00:55:51]} {[%emt 00:15:56]} 15. Qh3 {[%clk 01:00:15]} {[%emt
00:05:35]} Ng6 {[%clk 00:48:25]} {[%emt 00:07:57]} 16. Nxe6 {[%clk 00:53:47]}
{[%emt 00:06:58]} fxe6 {[%clk 00:48:46]} {[%emt 00:00:08]} 17. Qxe6+ {[%clk
00:54:12]} {[%emt 00:00:04]} Nge7 {[%clk 00:49:06]} {[%emt 00:00:11]} 18. c4
{[%clk 00:54:20]} {[%emt 00:00:22]} Qxb4 {[%clk 00:32:38]} {[%emt 00:16:58]} 19.
Rad1 {[%clk 00:49:42]} {[%emt 00:05:07]} Nd4 {[%clk 00:21:12]} {[%emt
00:11:57]} 20. Qd6 {[%clk 00:40:38]} {[%emt 00:09:34]} Nc2 {[%clk 00:18:53]}
{[%emt 00:02:50]} 21. Qe6 {[%clk 00:30:44]} {[%emt 00:10:22]} Rd8 {[%clk
00:08:53]} {[%emt 00:10:31]} 22. Rb1 {[%clk 00:21:01]} {[%emt 00:10:13]} Qxd2
{[%clk 00:05:13]} {[%emt 00:04:11]} 23. Red1 {[%clk 00:21:17]} {[%emt
00:00:12]} Nd4 {[%clk 00:05:05]} {[%emt 00:00:39]} 24. Qg4 {[%clk 00:19:26]}
{[%emt 00:02:20]} Ne2+ {[%clk 00:04:52]} {[%emt 00:00:44]} 25. Kh1 {[%clk
00:19:28]} {[%emt 00:00:25]} Qc2 {[%clk 00:04:29]} {[%emt 00:00:56]} 26. Re1
{[%clk 00:17:10]} {[%emt 00:02:47]} Qxc4 {[%clk 00:03:32]} {[%emt 00:01:28]} 27.
Qxg7 {[%clk 00:15:56]} {[%emt 00:01:44]} Rg8 {[%clk 00:03:51]} {[%emt
00:00:11]} 28. Qxh6 {[%clk 00:16:22]} {[%emt 00:00:04]} Qg4 {[%clk 00:03:52]}
{[%emt 00:00:29]} 29. Qh3 {[%clk 00:16:26]} {[%emt 00:00:26]} Qxh3 {[%clk
00:03:11]} {[%emt 00:01:11]} 30. gxh3 {[%clk 00:16:51]} {[%emt 00:00:03]} Nf4
{[%clk 00:03:20]} {[%emt 00:00:23]} 31. Rxb7 {[%clk 00:17:13]} {[%emt
00:00:09]} Nxh3 {[%clk 00:03:36]} {[%emt 00:00:13]} 32. Rb6 {[%clk 00:17:16]}
{[%emt 00:00:28]} Nxf2# {[%clk 00:03:55]} {[%emt 00:00:10]} 0-1

[Event "Vetern-SM 50+ 2025"]
[Site "Uppsala, Sweden"]
[Date "2025.07.03"]
[Round "6.6"]
[White "Bergfalk, Jonas"]
[Black "Hedin, Niclas"]
[Result "1-0"]
[TimeControl "90 min for 40 move + 30 min with an increment of 30 sec starting move 1"]
[WhiteFideId "1703986"]
[BlackFideId "1720708"]
[WhiteElo "2030"]
[BlackElo "1953"]

1. c4 {[%clk 01:30:57]} {[%emt 00:00:03]} c6 {[%clk 01:30:39]} {[%emt
00:00:22]} 2. Nf3 {[%clk 01:30:40]} {[%emt 00:00:46]} d5 {[%clk 01:30:47]}
{[%emt 00:00:23]} 3. b3 {[%clk 01:30:21]} {[%emt 00:00:48]} Nf6 {[%clk
01:30:37]} {[%emt 00:00:39]} 4. g3 {[%clk 01:30:42]} {[%emt 00:00:10]} Bf5
{[%clk 01:29:25]} {[%emt 00:01:42]} 5. Bg2 {[%clk 01:31:04]} {[%emt 00:00:09]}
e6 {[%clk 01:28:36]} {[%emt 00:01:18]} 6. O-O {[%clk 01:31:24]} {[%emt
00:00:10]} Nbd7 {[%clk 01:28:39]} {[%emt 00:00:27]} 7. Bb2 {[%clk 01:30:12]}
{[%emt 00:01:42]} Be7 {[%clk 01:27:09]} {[%emt 00:02:00]} 8. d3 {[%clk
01:29:41]} {[%emt 00:01:01]} h6 {[%clk 01:25:08]} {[%emt 00:02:31]} 9. Nbd2
{[%clk 01:30:00]} {[%emt 00:00:12]} O-O {[%clk 01:19:41]} {[%emt 00:05:57]} 10.
a3 {[%clk 01:27:57]} {[%emt 00:02:33]} Re8 {[%clk 01:13:22]} {[%emt 00:06:48]}
11. b4 {[%clk 01:19:05]} {[%emt 00:09:22]} Bf8 {[%clk 01:11:19]} {[%emt
00:02:34]} 12. b5 {[%clk 01:02:27]} {[%emt 00:17:08]} cxb5 {[%clk 01:02:03]}
{[%emt 00:09:45]} 13. cxb5 {[%clk 01:02:35]} {[%emt 00:00:22]} a6 {[%clk
00:59:12]} {[%emt 00:03:21]} 14. bxa6 {[%clk 00:40:47]} {[%emt 00:22:19]} Rxa6
{[%clk 00:58:00]} {[%emt 00:01:41]} 15. Nd4 {[%clk 00:33:28]} {[%emt 00:07:49]}
Bg6 {[%clk 00:56:49]} {[%emt 00:01:41]} 16. N4b3 {[%clk 00:21:24]} {[%emt
00:12:34]} Qa8 {[%clk 00:45:27]} {[%emt 00:11:53]} 17. Ra2 {[%clk 00:18:02]}
{[%emt 00:03:51]} Bxa3 {[%clk 00:41:10]} {[%emt 00:04:47]} 18. Bxa3 {[%clk
00:18:25]} {[%emt 00:00:08]} Rxa3 {[%clk 00:41:31]} {[%emt 00:00:08]} 19. Rxa3
{[%clk 00:18:50]} {[%emt 00:00:06]} Qxa3 {[%clk 00:41:49]} {[%emt 00:00:11]} 20.
Qa1 {[%clk 00:18:53]} {[%emt 00:00:27]} Qxa1 {[%clk 00:32:24]} {[%emt
00:09:56]} 21. Rxa1 {[%clk 00:19:11]} {[%emt 00:00:12]} Rc8 {[%clk 00:30:00]}
{[%emt 00:02:52]} 22. Ra7 {[%clk 00:19:05]} {[%emt 00:00:37]} b6 {[%clk
00:29:47]} {[%emt 00:00:44]} 23. f4 {[%clk 00:17:41]} {[%emt 00:01:53]} Nc5
{[%clk 00:28:17]} {[%emt 00:02:00]} 24. Nd4 {[%clk 00:17:52]} {[%emt 00:00:19]}
Bh5 {[%clk 00:23:09]} {[%emt 00:05:38]} 25. Bf3 {[%clk 00:17:44]} {[%emt
00:00:38]} Bxf3 {[%clk 00:23:20]} {[%emt 00:00:19]} 26. N2xf3 {[%clk 00:18:06]}
{[%emt 00:00:09]} Ncd7 {[%clk 00:21:03]} {[%emt 00:02:47]} 27. h3 {[%clk
00:17:43]} {[%emt 00:00:52]} Kf8 {[%clk 00:20:09]} {[%emt 00:01:25]} 28. Kf2
{[%clk 00:17:54]} {[%emt 00:00:17]} Rc5 {[%clk 00:17:45]} {[%emt 00:02:55]} 29.
Ne5 {[%clk 00:16:19]} {[%emt 00:02:05]} Nxe5 {[%clk 00:16:03]} {[%emt
00:02:13]} 30. fxe5 {[%clk 00:16:35]} {[%emt 00:00:13]} Ne8 {[%clk 00:16:11]}
{[%emt 00:00:22]} 31. Rb7 {[%clk 00:16:49]} {[%emt 00:00:17]} Rc7 {[%clk
00:13:54]} {[%emt 00:02:47]} 32. Rxb6 {[%clk 00:17:07]} {[%emt 00:00:12]} Ke7
{[%clk 00:13:12]} {[%emt 00:01:11]} 33. Rb8 {[%clk 00:14:21]} {[%emt 00:03:16]}
g6 {[%clk 00:07:50]} {[%emt 00:05:52]} 34. g4 {[%clk 00:13:58]} {[%emt
00:00:53]} Kd7 {[%clk 00:03:06]} {[%emt 00:05:14]} 35. Nb5 {[%clk 00:09:33]}
{[%emt 00:04:54]} Rc8 {[%clk 00:02:40]} {[%emt 00:00:58]} 36. Rxc8 {[%clk
00:09:22]} {[%emt 00:00:41]} Kxc8 {[%clk 00:03:02]} {[%emt 00:00:08]} 37. Ke3
{[%clk 00:08:39]} {[%emt 00:01:13]} Kb7 {[%clk 00:02:49]} {[%emt 00:00:42]} 38.
h4 {[%clk 00:06:50]} {[%emt 00:02:19]} Kb6 {[%clk 00:02:54]} {[%emt 00:00:25]}
39. Nd4 {[%clk 00:07:07]} {[%emt 00:00:14]} Ng7 {[%clk 00:02:30]} {[%emt
00:00:53]} 40. Kf4 {[%clk 00:05:22]} {[%emt 00:02:15]} Kc5 {[%clk 00:02:16]}
{[%emt 00:00:44]} 41. Nf3 {[%clk 00:04:10]} {[%emt 00:01:42]} Kc6 {[%clk
00:24:50]} {[%emt 00:07:55]} 42. Ng5 {[%clk 00:25:31]} {[%emt 00:09:10]} hxg5+
{[%clk 00:08:47]} {[%emt 00:16:33]} 43. Kxg5 {[%clk 00:25:53]} {[%emt
00:00:08]} d4 {[%clk 00:09:14]} {[%emt 00:00:04]} 44. Kf6 {[%clk 00:25:59]}
{[%emt 00:00:23]} Ne8 {[%clk 00:09:39]} {[%emt 00:00:05]} 45. Kxf7 {[%clk
00:25:49]} {[%emt 00:00:40]} Kd5 {[%clk 00:09:56]} {[%emt 00:00:13]} 46. Kxe8
{[%clk 00:25:02]} {[%emt 00:01:17]} Kxe5 {[%clk 00:10:18]} {[%emt 00:00:08]} 47.
Ke7 {[%clk 00:25:22]} {[%emt 00:00:10]} Kf4 {[%clk 00:10:07]} {[%emt 00:00:41]}
48. h5 {[%clk 00:25:45]} {[%emt 00:00:07]} gxh5 {[%clk 00:09:07]} {[%emt
00:01:30]} 49. gxh5 {[%clk 00:26:07]} {[%emt 00:00:08]} 1-0

[Event "Vetern-SM 50+ 2025"]
[Site "Uppsala, Sweden"]
[Date "2025.07.03"]
[Round "6.7"]
[White "Lundberg, Daniel"]
[Black "Ivarsson, Anders"]
[Result "1/2-1/2"]
[TimeControl "90 min for 40 move + 30 min with an increment of 30 sec starting move 1"]
[WhiteFideId "1759264"]
[BlackFideId "1768158"]
[WhiteElo "1838"]
[BlackElo "1987"]

1. Nf3 {[%clk 01:30:55]} {[%emt 00:00:04]} c5 {[%clk 01:30:56]} {[%emt
00:00:05]} 2. g3 {[%clk 01:31:17]} {[%emt 00:00:06]} Nf6 {[%clk 01:31:19]}
{[%emt 00:00:09]} 3. Bg2 {[%clk 01:31:36]} {[%emt 00:00:11]} d5 {[%clk
01:31:39]} {[%emt 00:00:10]} 4. O-O {[%clk 01:31:54]} {[%emt 00:00:12]} Nc6
{[%clk 01:32:00]} {[%emt 00:00:08]} 5. d4 {[%clk 01:31:53]} {[%emt 00:00:32]}
cxd4 {[%clk 01:32:12]} {[%emt 00:00:19]} 6. Nxd4 {[%clk 01:32:13]} {[%emt
00:00:09]} e5 {[%clk 01:32:33]} {[%emt 00:00:09]} 7. Nxc6 {[%clk 01:32:27]}
{[%emt 00:00:16]} bxc6 {[%clk 01:32:55]} {[%emt 00:00:08]} 8. c4 {[%clk
01:32:40]} {[%emt 00:00:17]} Be6 {[%clk 01:32:49]} {[%emt 00:00:37]} 9. Nc3
{[%clk 01:31:12]} {[%emt 00:01:57]} Rc8 {[%clk 01:32:59]} {[%emt 00:00:20]} 10.
Qa4 {[%clk 01:29:05]} {[%emt 00:02:37]} Qd7 {[%clk 01:31:17]} {[%emt 00:02:12]}
11. cxd5 {[%clk 01:26:16]} {[%emt 00:03:19]} cxd5 {[%clk 01:22:38]} {[%emt
00:09:10]} 12. Qxd7+ {[%clk 01:24:45]} {[%emt 00:02:00]} Kxd7 {[%clk 01:20:54]}
{[%emt 00:02:14]} 13. Rd1 {[%clk 01:24:52]} {[%emt 00:00:23]} Kc6 {[%clk
00:51:11]} {[%emt 00:30:13]} 14. Bg5 {[%clk 01:12:39]} {[%emt 00:12:43]} Bb4
{[%clk 00:47:32]} {[%emt 00:04:09]} 15. Rac1 {[%clk 01:04:12]} {[%emt
00:08:56]} Bxc3 {[%clk 00:46:18]} {[%emt 00:01:46]} 16. Rxc3+ {[%clk 01:03:41]}
{[%emt 00:01:01]} Kb5 {[%clk 00:46:08]} {[%emt 00:00:39]} 17. Bxf6 {[%clk
00:50:20]} {[%emt 00:13:51]} Rxc3 {[%clk 00:44:08]} {[%emt 00:02:31]} 18. bxc3
{[%clk 00:50:43]} {[%emt 00:00:07]} gxf6 {[%clk 00:44:33]} {[%emt 00:00:05]} 19.
Bxd5 {[%clk 00:50:48]} {[%emt 00:00:24]} Bxd5 {[%clk 00:41:02]} {[%emt
00:04:01]} 20. Rxd5+ {[%clk 00:51:10]} {[%emt 00:00:08]} Kc6 {[%clk 00:41:22]}
{[%emt 00:00:09]} 21. Rd2 {[%clk 00:50:33]} {[%emt 00:01:07]} Rb8 {[%clk
00:41:09]} {[%emt 00:00:43]} 22. Kg2 {[%clk 00:44:54]} {[%emt 00:06:10]} a5
{[%clk 00:40:14]} {[%emt 00:01:26]} 23. Kf3 {[%clk 00:43:15]} {[%emt 00:02:08]}
Kc5 {[%clk 00:38:37]} {[%emt 00:02:07]} 24. Ke4 {[%clk 00:38:14]} {[%emt
00:05:31]} Kc4 {[%clk 00:36:16]} {[%emt 00:02:51]} 25. Rd7 {[%clk 00:36:24]}
{[%emt 00:02:19]} Kxc3 {[%clk 00:32:34]} {[%emt 00:04:12]} 26. Rxf7 {[%clk
00:32:08]} {[%emt 00:04:47]} Rb2 {[%clk 00:31:50]} {[%emt 00:01:15]} 27. Ke3
{[%clk 00:31:31]} {[%emt 00:01:07]} Rxa2 {[%clk 00:31:55]} {[%emt 00:00:25]} 28.
Rxf6 {[%clk 00:31:06]} {[%emt 00:00:54]} a4 {[%clk 00:23:04]} {[%emt 00:09:21]}
29. f4 {[%clk 00:28:43]} {[%emt 00:02:53]} exf4 {[%clk 00:23:09]} {[%emt
00:00:25]} 30. gxf4 {[%clk 00:29:02]} {[%emt 00:00:11]} a3 {[%clk 00:18:54]}
{[%emt 00:04:45]} 31. f5 {[%clk 00:28:38]} {[%emt 00:00:54]} Rc2 {[%clk
00:07:17]} {[%emt 00:12:08]} 32. Rc6+ {[%clk 00:27:20]} {[%emt 00:01:47]} Kb2
{[%clk 00:07:41]} {[%emt 00:00:06]} 33. Rxc2+ {[%clk 00:27:34]} {[%emt
00:00:16]} Kxc2 {[%clk 00:08:10]} {[%emt 00:00:02]} 34. f6 {[%clk 00:27:54]}
{[%emt 00:00:09]} a2 {[%clk 00:08:26]} {[%emt 00:00:14]} 35. f7 {[%clk
00:28:19]} {[%emt 00:00:06]} a1=Q {[%clk 00:08:48]} {[%emt 00:00:08]} 36. f8=Q
{[%emt 00:01:52]} Qe5+ {[%clk 00:08:26]} 37. Kf3 {[%clk 00:27:53]} {[%emt
00:00:24]} Qxh2 {[%clk 00:04:23]} {[%emt 00:04:33]} 38. Qf5+ {[%clk 00:22:26]}
{[%emt 00:05:57]} Kb3 {[%clk 00:03:56]} {[%emt 00:00:57]} 39. Qd5+ {[%clk
00:21:22]} {[%emt 00:01:34]} Ka4 {[%clk 00:02:59]} {[%emt 00:01:27]} 40. e4
{[%clk 00:21:21]} {[%emt 00:00:31]} Qh4 {[%clk 00:01:55]} {[%emt 00:01:28]} 41.
Qc6+ {[%clk 00:19:49]} {[%emt 00:02:08]} Kb4 {[%clk 00:01:31]} {[%emt
00:00:54]} 42. Qd6+ {[%clk 00:20:05]} {[%emt 00:00:13]} Kb5 {[%clk 00:30:12]}
{[%emt 00:01:49]} 43. e5 {[%clk 00:50:25]} {[%emt 00:00:11]} h5 {[%clk
00:26:55]} {[%emt 00:03:47]} 44. Qd7+ {[%clk 00:46:12]} {[%emt 00:04:43]} Kc5
{[%clk 00:24:47]} {[%emt 00:02:38]} 45. e6 {[%clk 00:45:47]} {[%emt 00:00:54]}
Qg4+ {[%clk 00:23:01]} {[%emt 00:02:15]} 46. Ke3 {[%clk 00:42:40]} {[%emt
00:03:38]} Qg3+ {[%clk 00:23:13]} {[%emt 00:00:18]} 47. Ke4 {[%clk 00:41:02]}
{[%emt 00:02:08]} Qg4+ {[%clk 00:23:33]} {[%emt 00:00:11]} 48. Ke3 {[%clk
00:41:22]} {[%emt 00:00:09]} 1/2-1/2